fUSD/lending_fUSD_20260517
["ID","MTS","AMOUNT","RATE_DAILY","PERIOD"]
[422459670,1778968234000,-500.0,0.00015109,2]
[422459673,1778968234000,-308.25483351,0.00015109,2]
[422459659,1778968234000,-500.0,0.00015109,2]
[422459660,1778968234000,-308.25483351,0.00015109,2]
[422459662,1778968234000,-308.25483351,0.00015109,2]
[422459663,1778968234000,-500.0,0.00015109,2]
[422459658,1778968234000,-308.25483351,0.00015109,2]
[422459666,1778968234000,-500.0,0.00015109,2]
[422459665,1778968234000,-454.85870032,0.00015109,2]
[422459667,1778968234000,-308.25483351,0.00015109,2]
[422459668,1778968234000,-500.0,0.00015109,2]
[422459664,1778968234000,-500.0,0.00015109,2]
[422459706,1778968238000,-30657.494,0.0001511,2]
[422459708,1778968238000,-500.0,0.00015158,2]
[422459714,1778968238000,-11869.00237905,0.00015166,2]
[422459716,1778968238000,-3607.98802933,0.00015166,2]
[422459718,1778968238000,-22363.01435937,0.00015189,2]
[422459720,1778968238000,-1290.73,0.000152,2]
[422459722,1778968238000,-887.0560914,0.000152,2]
[422459724,1778968238000,-151.0,0.00015207,2]
[422459727,1778968238000,-531.62,0.00015209,2]
[422459729,1778968238000,-531.62,0.00015209,2]
[422459731,1778968238000,-531.62,0.00015209,2]
[422459734,1778968238000,-531.62,0.00015209,2]
[422459737,1778968238000,-531.62,0.00015209,2]
[422459739,1778968238000,-500.0,0.00015209,2]
[422459740,1778968238000,-500.0,0.00015209,2]
[422459704,1778968238000,-2000.0,0.0001511,2]
[422459726,1778968238000,-151.0,0.00015207,2]
[422459736,1778968238000,-531.62,0.00015209,2]
[422459691,1778968238000,-500.0,0.00015109,2]
[422459701,1778968238000,-500.0,0.00015109,2]
[422459686,1778968238000,-404.1372,0.00015009,2]
[422459685,1778968238000,-500.0,0.00014884,2]
[422459687,1778968238000,-95.8628,0.00015009,2]
[422459688,1778968238000,-3335.53547791,0.0001501,2]
[422459690,1778968238000,-291.21452106,0.0001501,2]
[422459689,1778968238000,-1373.25000103,0.0001501,2]
[422459694,1778968238000,-324.82333195,0.00015109,2]
[422459742,1778968238000,-500.0,0.00015209,2]
[422459692,1778968238000,-431.48025894,0.00015109,2]
[422459693,1778968238000,-68.51974106,0.00015109,2]
[422459695,1778968238000,-175.17666805,0.00015109,2]
[422459696,1778968238000,-500.0,0.00015109,2]
[422459697,1778968238000,-453.1992022,0.00015109,2]
[422459698,1778968238000,-46.8007978,0.00015109,2]
[422459700,1778968238000,-500.0,0.00015109,2]
[422459712,1778968238000,-211.0878144,0.00015166,2]
[422459710,1778968238000,-329.44463252,0.00015166,2]
[422459699,1778968238000,-500.0,0.00015109,2]
[422459744,1778968238000,-500.0,0.00015209,2]
[422459702,1778968238000,-1371162.05240347,0.0001511,2]
[422459748,1778968238000,-500.0,0.00015209,2]
[422459783,1778968238000,-500.0,0.00015209,2]
[422459785,1778968238000,-500.0,0.00015209,2]
[422459794,1778968238000,-500.0,0.00015209,2]
[422459796,1778968238000,-500.0,0.00015209,2]
[422459798,1778968238000,-500.0,0.00015209,2]
[422459801,1778968238000,-500.0,0.00015209,2]
[422459803,1778968238000,-602.58866101,0.00015209,2]
[422459814,1778968238000,-500.0,0.00015209,2]
[422459810,1778968238000,-209.602918,0.00015209,2]
[422459812,1778968238000,-500.0,0.00015209,2]
[422459816,1778968238000,-500.0,0.00015209,2]
[422459805,1778968238000,-500.0,0.00015209,2]
[422459807,1778968238000,-500.0,0.00015209,2]
[422459819,1778968238000,-500.0,0.00015209,2]
[422459821,1778968238000,-600.0,0.00015209,2]
[422459823,1778968238000,-312.98457709,0.00015209,2]
[422459746,1778968238000,-500.0,0.00015209,2]
[422459779,1778968238000,-500.0,0.00015209,2]
[422459789,1778968238000,-500.0,0.00015209,2]
[422459808,1778968238000,-500.0,0.00015209,2]
[422459781,1778968238000,-500.0,0.00015209,2]
[422459790,1778968238000,-500.0,0.00015209,2]
[422459763,1778968238000,-773.16,0.00015209,2]
[422459750,1778968238000,-500.0,0.00015209,2]
[422459752,1778968238000,-500.0,0.00015209,2]
[422459766,1778968238000,-773.16,0.00015209,2]
[422459760,1778968238000,-500.0,0.00015209,2]
[422459758,1778968238000,-500.0,0.00015209,2]
[422459754,1778968238000,-500.0,0.00015209,2]
[422459762,1778968238000,-773.16,0.00015209,2]
[422459767,1778968238000,-773.16,0.00015209,2]
[422459769,1778968238000,-773.16,0.00015209,2]
[422459771,1778968238000,-773.16,0.00015209,2]
[422459775,1778968238000,-500.0,0.00015209,2]
[422459773,1778968238000,-500.0,0.00015209,2]
[422459777,1778968238000,-500.0,0.00015209,2]
[422459787,1778968238000,-500.0,0.00015209,2]
[422459756,1778968238000,-500.0,0.00015209,2]
[422459793,1778968238000,-500.0,0.00015209,2]
[422459890,1778968239000,-500.0,0.00015566,2]
[422459897,1778968239000,-500.0,0.00015665,2]
[422459895,1778968239000,-500.0,0.00015665,2]
[422459894,1778968239000,-531.62,0.00015665,2]
[422459891,1778968239000,-187.566154,0.00015595,2]
[422459888,1778968239000,-500.0,0.00015566,2]
[422459887,1778968239000,-500.0,0.00015566,2]
[422459886,1778968239000,-500.0,0.00015566,2]
[422459884,1778968239000,-500.0,0.00015566,2]
[422459885,1778968239000,-500.0,0.00015566,2]
[422459883,1778968239000,-500.0,0.00015432,2]
[422459882,1778968239000,-184.1,0.000154,2]
[422459889,1778968239000,-500.0,0.00015566,2]
[422459893,1778968239000,-515.53,0.00015665,2]
[422459903,1778968239000,-500.0,0.00015666,2]
[422459892,1778968239000,-260.47,0.00015632,2]
[422459900,1778968239000,-500.0,0.00015666,2]
[422459898,1778968239000,-500.0,0.00015666,2]
[422459899,1778968239000,-500.0,0.00015666,2]
[422459902,1778968239000,-500.0,0.00015666,2]
[422459901,1778968239000,-500.0,0.00015666,2]
[422459904,1778968239000,-500.0,0.00015666,2]
[422459906,1778968239000,-500.0,0.00015666,2]
[422459907,1778968239000,-500.0,0.00015666,2]
[422459908,1778968239000,-500.0,0.00015666,2]
[422459905,1778968239000,-500.0,0.00015666,2]
[422459911,1778968239000,-500.0,0.00015666,2]
[422459910,1778968239000,-500.0,0.00015666,2]
[422459881,1778968239000,-184.1,0.000154,2]
[422459896,1778968239000,-500.0,0.00015665,2]
[422459880,1778968239000,-184.1,0.000154,2]
[422459846,1778968239000,-515.53,0.00015297,2]
[422459879,1778968239000,-184.1,0.000154,2]
[422459909,1778968239000,-500.0,0.00015666,2]
[422459825,1778968239000,-1500000.0,0.0001521,2]
[422459829,1778968239000,-229.792451,0.00015297,2]
[422459839,1778968239000,-515.53,0.00015297,2]
[422459837,1778968239000,-515.53,0.00015297,2]
[422459831,1778968239000,-500.0,0.00015297,2]
[422459827,1778968239000,-344.16169149,0.00015266,2]
[422459845,1778968239000,-515.53,0.00015297,2]
[422459833,1778968239000,-500.0,0.00015297,2]
[422459835,1778968239000,-300.40953825,0.00015297,2]
[422459843,1778968239000,-515.53,0.00015297,2]
[422459841,1778968239000,-515.53,0.00015297,2]
[422459849,1778968239000,-500.0,0.00015297,2]
[422459851,1778968239000,-500.0,0.00015297,2]
[422459878,1778968239000,-208.44072055,0.00015394,2]
[422459853,1778968239000,-500.0,0.00015297,2]
[422459858,1778968239000,-500.0,0.00015297,2]
[422459869,1778968239000,-1604.24,0.0001531,2]
[422459870,1778968239000,-150.99,0.0001531,2]
[422459855,1778968239000,-500.0,0.00015297,2]
[422459862,1778968239000,-500.0,0.00015297,2]
[422459867,1778968239000,-9999.99,0.0001531,2]
[422459860,1778968239000,-500.0,0.00015297,2]
[422459865,1778968239000,-500.0,0.00015297,2]
[422459875,1778968239000,-196.479533,0.00015353,2]
[422459871,1778968239000,-226.74,0.0001531,2]
[422459874,1778968239000,-166.66,0.00015342,2]
[422459872,1778968239000,-200.0,0.00015311,2]
[422459877,1778968239000,-215.03962261,0.00015394,2]
[422459876,1778968239000,-160.0,0.00015394,2]
[422459857,1778968239000,-500.0,0.00015297,2]
[422459913,1778968239000,-500.0,0.00015666,2]
[422459971,1778968239000,-500.0,0.00015666,2]
[422459912,1778968239000,-500.0,0.00015666,2]
[422459945,1778968239000,-500.0,0.00015666,2]
[422459949,1778968239000,-500.0,0.00015666,2]
[422459952,1778968239000,-500.0,0.00015666,2]
[422459948,1778968239000,-500.0,0.00015666,2]
[422459954,1778968239000,-500.0,0.00015666,2]
[422459953,1778968239000,-500.0,0.00015666,2]
[422459955,1778968239000,-500.0,0.00015666,2]
[422459957,1778968239000,-500.0,0.00015666,2]
[422459956,1778968239000,-500.0,0.00015666,2]
[422459958,1778968239000,-500.0,0.00015666,2]
[422459963,1778968239000,-500.0,0.00015666,2]
[422459965,1778968239000,-500.0,0.00015666,2]
[422459964,1778968239000,-500.0,0.00015666,2]
[422459966,1778968239000,-500.0,0.00015666,2]
[422459950,1778968239000,-500.0,0.00015666,2]
[422459962,1778968239000,-500.0,0.00015666,2]
[422459960,1778968239000,-500.0,0.00015666,2]
[422459961,1778968239000,-500.0,0.00015666,2]
[422459967,1778968239000,-500.0,0.00015666,2]
[422459968,1778968239000,-500.0,0.00015666,2]
[422459969,1778968239000,-500.0,0.00015666,2]
[422459970,1778968239000,-500.0,0.00015666,2]
[422459972,1778968239000,-500.0,0.00015666,2]
[422459974,1778968239000,-500.0,0.00015666,2]
[422459975,1778968239000,-500.0,0.00015666,2]
[422459973,1778968239000,-500.0,0.00015666,2]
[422459977,1778968239000,-500.0,0.00015666,2]
[422459976,1778968239000,-500.0,0.00015666,2]
[422459978,1778968239000,-500.0,0.00015666,2]
[422459914,1778968239000,-500.0,0.00015666,2]
[422459959,1778968239000,-500.0,0.00015666,2]
[422459951,1778968239000,-500.0,0.00015666,2]
[422459979,1778968239000,-500.0,0.00015666,2]
[422459946,1778968239000,-500.0,0.00015666,2]
[422459947,1778968239000,-500.0,0.00015666,2]
[422459915,1778968239000,-500.0,0.00015666,2]
[422459917,1778968239000,-500.0,0.00015666,2]
[422459919,1778968239000,-515.53,0.00015666,2]
[422459916,1778968239000,-500.0,0.00015666,2]
[422459920,1778968239000,-515.53,0.00015666,2]
[422459922,1778968239000,-515.53,0.00015666,2]
[422459924,1778968239000,-515.53,0.00015666,2]
[422459923,1778968239000,-515.53,0.00015666,2]
[422459921,1778968239000,-515.53,0.00015666,2]
[422459925,1778968239000,-515.53,0.00015666,2]
[422459927,1778968239000,-515.53,0.00015666,2]
[422459928,1778968239000,-500.0,0.00015666,2]
[422459926,1778968239000,-515.53,0.00015666,2]
[422459929,1778968239000,-500.0,0.00015666,2]
[422459918,1778968239000,-515.53,0.00015666,2]
[422459933,1778968239000,-500.0,0.00015666,2]
[422459931,1778968239000,-500.0,0.00015666,2]
[422459944,1778968239000,-500.0,0.00015666,2]
[422459940,1778968239000,-500.0,0.00015666,2]
[422459941,1778968239000,-500.0,0.00015666,2]
[422459935,1778968239000,-500.0,0.00015666,2]
[422459930,1778968239000,-500.0,0.00015666,2]
[422459942,1778968239000,-500.0,0.00015666,2]
[422459936,1778968239000,-500.0,0.00015666,2]
[422459932,1778968239000,-500.0,0.00015666,2]
[422459939,1778968239000,-500.0,0.00015666,2]
[422459937,1778968239000,-500.0,0.00015666,2]
[422459943,1778968239000,-500.0,0.00015666,2]
[422459934,1778968239000,-500.0,0.00015666,2]
[422459938,1778968239000,-500.0,0.00015666,2]
[422460029,1778968240000,-44076.87585741,0.00015914,2]
[422460016,1778968240000,-151.0,0.00015734,2]
[422460019,1778968240000,-151.0,0.00015734,2]
[422460012,1778968240000,-151.0,0.00015734,2]
[422460014,1778968240000,-151.0,0.00015734,2]
[422460015,1778968240000,-151.0,0.00015734,2]
[422460017,1778968240000,-151.0,0.00015734,2]
[422460020,1778968240000,-151.0,0.00015734,2]
[422460021,1778968240000,-151.0,0.00015734,2]
[422460023,1778968240000,-151.0,0.00015734,2]
[422460013,1778968240000,-151.0,0.00015734,2]
[422460018,1778968240000,-151.0,0.00015734,2]
[422460027,1778968240000,-500.0,0.0001579,2]
[422460030,1778968240000,-500.0,0.0001598,2]
[422460025,1778968240000,-773.16,0.0001579,2]
[422460024,1778968240000,-151.0,0.00015734,2]
[422460028,1778968240000,-166.66,0.00015817,2]
[422460022,1778968240000,-151.0,0.00015734,2]
[422460031,1778968240000,-300.0,0.00016,2]
[422460032,1778968240000,-158.04817434,0.00016,2]
[422460034,1778968240000,-158.04817434,0.000161,2]
[422460033,1778968240000,-587.0,0.00016014,2]
[422460035,1778968240000,-9999.99,0.00016116,2]
[422460011,1778968240000,-151.0,0.00015734,2]
[422460038,1778968240000,-158.04817434,0.000162,2]
[422460026,1778968240000,-500.0,0.0001579,2]
[422460009,1778968240000,-151.0,0.00015734,2]
[422459992,1778968240000,-500.0,0.00015666,2]
[422460006,1778968240000,-151.0,0.00015734,2]
[422460036,1778968240000,-2351.0,0.00016122,2]
[422459980,1778968240000,-500.0,0.00015666,2]
[422459981,1778968240000,-500.0,0.00015666,2]
[422459982,1778968240000,-500.0,0.00015666,2]
[422459984,1778968240000,-500.0,0.00015666,2]
[422459983,1778968240000,-500.0,0.00015666,2]
[422459986,1778968240000,-500.0,0.00015666,2]
[422459991,1778968240000,-500.0,0.00015666,2]
[422459987,1778968240000,-500.0,0.00015666,2]
[422459985,1778968240000,-500.0,0.00015666,2]
[422459988,1778968240000,-624.48704047,0.00015666,2]
[422459989,1778968240000,-500.0,0.00015666,2]
[422460007,1778968240000,-151.0,0.00015734,2]
[422459990,1778968240000,-500.0,0.00015666,2]
[422459994,1778968240000,-619.09086971,0.00015666,2]
[422459995,1778968240000,-500.0,0.00015666,2]
[422460001,1778968240000,-500.0,0.00015699,2]
[422460005,1778968240000,-151.0,0.00015734,2]
[422460004,1778968240000,-151.0,0.00015734,2]
[422459998,1778968240000,-433.0,0.00015696,2]
[422459999,1778968240000,-500.0,0.00015699,2]
[422459996,1778968240000,-500.0,0.00015666,2]
[422460002,1778968240000,-500.0,0.00015706,2]
[422460000,1778968240000,-500.0,0.00015699,2]
[422459997,1778968240000,-507.15627863,0.00015666,2]
[422460008,1778968240000,-151.0,0.00015734,2]
[422459993,1778968240000,-500.0,0.00015666,2]
[422460039,1778968240000,-179.247059,0.00016241,2]
[422460041,1778968240000,-166.66,0.00016292,2]
[422460040,1778968240000,-500.0,0.00016254,2]
[422460072,1778968240000,-500.0,0.00017808,2]
[422460071,1778968240000,-500.0,0.00017808,2]
[422460073,1778968240000,-500.0,0.00017808,2]
[422460075,1778968240000,-500.0,0.00017808,2]
[422460076,1778968240000,-500.0,0.00017808,2]
[422460074,1778968240000,-411.79865118,0.00017808,2]
[422460077,1778968240000,-500.0,0.00017808,2]
[422460078,1778968240000,-500.0,0.00017808,2]
[422460082,1778968240000,-500.0,0.00017808,2]
[422460083,1778968240000,-500.0,0.00017808,2]
[422460081,1778968240000,-500.0,0.00017808,2]
[422460080,1778968240000,-500.0,0.00017808,2]
[422460068,1778968240000,-3292.0,0.00017735,2]
[422460084,1778968240000,-500.0,0.00017808,2]
[422460086,1778968240000,-500.0,0.00017808,2]
[422460087,1778968240000,-500.0,0.00017808,2]
[422460088,1778968240000,-500.0,0.00017808,2]
[422460089,1778968240000,-500.0,0.00017808,2]
[422460097,1778968240000,-500.0,0.00017808,2]
[422460095,1778968240000,-500.0,0.00017808,2]
[422460094,1778968240000,-500.0,0.00017808,2]
[422460090,1778968240000,-500.0,0.00017808,2]
[422460093,1778968240000,-500.0,0.00017808,2]
[422460092,1778968240000,-500.0,0.00017808,2]
[422460096,1778968240000,-500.0,0.00017808,2]
[422460037,1778968240000,-799.21,0.00016132,2]
[422460085,1778968240000,-500.0,0.00017808,2]
[422460070,1778968240000,-500.0,0.00017808,2]
[422460079,1778968240000,-500.0,0.00017808,2]
[422460065,1778968240000,-823.0,0.00017557,2]
[422460069,1778968240000,-500.0,0.00017808,2]
[422460044,1778968240000,-900.0,0.00016438,2]
[422460043,1778968240000,-851.9,0.00016438,2]
[422460042,1778968240000,-260.47,0.00016413,2]
[422460045,1778968240000,-500.0,0.00016528,2]
[422460046,1778968240000,-166.66,0.00016767,2]
[422460048,1778968240000,-44076.87585741,0.00016817,2]
[422460050,1778968240000,-736.0,0.00016994,2]
[422460049,1778968240000,-2000.0,0.00016891,2]
[422460052,1778968240000,-260.47,0.00017195,2]
[422460051,1778968240000,-500.0,0.00017076,2]
[422460053,1778968240000,-1290.73,0.000173,2]
[422460055,1778968240000,-500.0,0.0001735,2]
[422460047,1778968240000,-500.0,0.00016802,2]
[422460061,1778968240000,-500.0,0.00017352,2]
[422460054,1778968240000,-173.24,0.00017313,2]
[422460066,1778968240000,-500.0,0.00017624,2]
[422460064,1778968240000,-382.66914498,0.00017352,2]
[422460063,1778968240000,-500.0,0.00017352,2]
[422460062,1778968240000,-500.0,0.00017352,2]
[422460067,1778968240000,-44076.87585741,0.00017721,2]
[422460060,1778968240000,-773.16,0.00017352,2]
[422460057,1778968240000,-773.16,0.00017352,2]
[422460056,1778968240000,-773.16,0.00017352,2]
[422460058,1778968240000,-773.16,0.00017352,2]
[422460059,1778968240000,-773.16,0.00017352,2]
[422460138,1778968241000,-500.0,0.00018355,2]
[422460140,1778968241000,-851.9,0.0001841,2]
[422460139,1778968241000,-89528.68,0.00018356,2]
[422460137,1778968241000,-500.0,0.00018355,2]
[422460136,1778968241000,-515.53,0.00018355,2]
[422460131,1778968241000,-500.0,0.00017898,2]
[422460133,1778968241000,-260.47,0.00017977,2]
[422460134,1778968241000,-350.0,0.00018,2]
[422460130,1778968241000,-600.0,0.00017889,2]
[422460132,1778968241000,-799.21,0.00017925,2]
[422460143,1778968241000,-44076.87585741,0.00018624,2]
[422460135,1778968241000,-500.0,0.00018172,2]
[422460146,1778968241000,-150.0,0.000189,2]
[422460157,1778968241000,-2000.0,0.00019108,2]
[422460141,1778968241000,-1252.0,0.00018413,2]
[422460142,1778968241000,-16956.59816678,0.00018571,2]
[422460144,1778968241000,-260.47,0.00018758,2]
[422460148,1778968241000,-11186.88729278,0.00019,2]
[422460147,1778968241000,-150.0,0.000189,2]
[422460152,1778968241000,-2000.0,0.00019108,2]
[422460158,1778968241000,-2000.0,0.00019108,2]
[422460154,1778968241000,-2000.0,0.00019108,2]
[422460150,1778968241000,-2000.0,0.00019108,2]
[422460153,1778968241000,-2000.0,0.00019108,2]
[422460151,1778968241000,-2000.0,0.00019108,2]
[422460159,1778968241000,-2000.0,0.00019108,2]
[422460126,1778968241000,-351.71,0.00017854,2]
[422460145,1778968241000,-2000.0,0.00018768,2]
[422460127,1778968241000,-600.0,0.00017856,2]
[422460099,1778968241000,-500.0,0.00017808,2]
[422460129,1778968241000,-351.71,0.00017888,2]
[422460156,1778968241000,-2000.0,0.00019108,2]
[422460098,1778968241000,-500.0,0.00017808,2]
[422460101,1778968241000,-500.0,0.00017808,2]
[422460103,1778968241000,-500.0,0.00017808,2]
[422460100,1778968241000,-500.0,0.00017808,2]
[422460102,1778968241000,-500.0,0.00017808,2]
[422460108,1778968241000,-500.0,0.00017808,2]
[422460105,1778968241000,-500.0,0.00017808,2]
[422460109,1778968241000,-500.0,0.00017808,2]
[422460107,1778968241000,-500.0,0.00017808,2]
[422460106,1778968241000,-500.0,0.00017808,2]
[422460110,1778968241000,-500.0,0.00017808,2]
[422460104,1778968241000,-500.0,0.00017808,2]
[422460128,1778968241000,-528.73,0.00017884,2]
[422460111,1778968241000,-500.0,0.00017808,2]
[422460115,1778968241000,-500.0,0.00017808,2]
[422460122,1778968241000,-528.73,0.00017808,2]
[422460113,1778968241000,-500.0,0.00017808,2]
[422460114,1778968241000,-500.0,0.00017808,2]
[422460121,1778968241000,-500.0,0.00017808,2]
[422460119,1778968241000,-500.0,0.00017808,2]
[422460118,1778968241000,-500.0,0.00017808,2]
[422460117,1778968241000,-530.56907462,0.00017808,2]
[422460120,1778968241000,-500.0,0.00017808,2]
[422460116,1778968241000,-500.0,0.00017808,2]
[422460124,1778968241000,-351.71,0.00017848,2]
[422460123,1778968241000,-528.73,0.00017838,2]
[422460125,1778968241000,-600.0,0.00017852,2]
[422460112,1778968241000,-500.0,0.00017808,2]
[422460155,1778968241000,-2000.0,0.00019108,2]
[422460149,1778968241000,-2455.3,0.00019046,2]
[422460161,1778968241000,-550.0,0.00019108,2]
[422460190,1778968241000,-300.0,0.00019109,2]
[422460191,1778968241000,-300.0,0.00019109,2]
[422460198,1778968241000,-150.0,0.00019233,2]
[422460196,1778968241000,-3000.0,0.00019178,2]
[422460197,1778968241000,-18345.59,0.00019178,2]
[422460192,1778968241000,-300.0,0.00019109,2]
[422460199,1778968241000,-150.0,0.00019233,2]
[422460201,1778968241000,-150.0,0.00019233,2]
[422460211,1778968241000,-1152.0,0.00019247,2]
[422460202,1778968241000,-150.0,0.00019233,2]
[422460200,1778968241000,-150.0,0.00019233,2]
[422460204,1778968241000,-150.0,0.00019233,2]
[422460203,1778968241000,-150.0,0.00019233,2]
[422460195,1778968241000,-172.0,0.00019109,2]
[422460205,1778968241000,-150.0,0.00019233,2]
[422460207,1778968241000,-150.0,0.00019233,2]
[422460208,1778968241000,-150.0,0.00019233,2]
[422460209,1778968241000,-202.73185857,0.00019233,2]
[422460210,1778968241000,-262.09781016,0.00019233,4]
[422460212,1778968241000,-262.09781016,0.00019254,4]
[422460214,1778968241000,-150.0,0.00019275,4]
[422460213,1778968241000,-150.0,0.0001927,4]
[422460215,1778968241000,-150.0,0.00019276,4]
[422460218,1778968241000,-262.09781016,0.00019298,4]
[422460219,1778968241000,-170.05315764,0.000193,2]
[422460216,1778968241000,-262.09781016,0.00019276,4]
[422460220,1778968241000,-150.0,0.00019307,4]
[422460217,1778968241000,-150.0,0.00019276,4]
[422460206,1778968241000,-150.0,0.00019233,2]
[422460193,1778968241000,-300.0,0.00019109,2]
[422460222,1778968241000,-150.0,0.00019318,4]
[422460188,1778968241000,-300.0,0.00019109,2]
[422460194,1778968241000,-300.0,0.00019109,2]
[422460162,1778968241000,-550.0,0.00019108,2]
[422460166,1778968241000,-371.0,0.00019108,2]
[422460165,1778968241000,-550.0,0.00019108,2]
[422460221,1778968241000,-150.0,0.00019317,4]
[422460168,1778968241000,-150.0,0.00019108,2]
[422460171,1778968241000,-800.0,0.00019108,2]
[422460163,1778968241000,-550.0,0.00019108,2]
[422460164,1778968241000,-550.0,0.00019108,2]
[422460169,1778968241000,-215.0,0.00019108,2]
[422460167,1778968241000,-279.0,0.00019108,2]
[422460172,1778968241000,-800.0,0.00019108,2]
[422460170,1778968241000,-800.0,0.00019108,2]
[422460174,1778968241000,-800.0,0.00019108,2]
[422460160,1778968241000,-1468.0,0.00019108,2]
[422460176,1778968241000,-800.0,0.00019108,2]
[422460173,1778968241000,-800.0,0.00019108,2]
[422460189,1778968241000,-300.0,0.00019109,2]
[422460187,1778968241000,-300.0,0.00019109,2]
[422460180,1778968241000,-1974.0,0.00019109,2]
[422460185,1778968241000,-694.0,0.00019109,2]
[422460182,1778968241000,-800.0,0.00019109,2]
[422460184,1778968241000,-800.0,0.00019109,2]
[422460181,1778968241000,-800.0,0.00019109,2]
[422460179,1778968241000,-683.0,0.00019108,2]
[422460177,1778968241000,-800.0,0.00019108,2]
[422460178,1778968241000,-800.0,0.00019108,2]
[422460186,1778968241000,-300.0,0.00019109,2]
[422460175,1778968241000,-800.0,0.00019108,2]
[422460183,1778968241000,-800.0,0.00019109,2]
[422460262,1778968242000,-150.0,0.00019528,4]
[422460270,1778968242000,-262.09781016,0.00019557,4]
[422460265,1778968242000,-262.09781016,0.00019535,4]
[422460264,1778968242000,-150.0,0.00019532,4]
[422460259,1778968242000,-262.09781016,0.00019513,4]
[422460258,1778968242000,-4609.0,0.00019508,2]
[422460253,1778968242000,-150.0,0.00019489,4]
[422460260,1778968242000,-150.0,0.00019524,2]
[422460257,1778968242000,-150.0,0.000195,4]
[422460261,1778968242000,-150.0,0.00019526,4]
[422460263,1778968242000,-44076.87585741,0.00019528,2]
[422460267,1778968242000,-150.0,0.00019538,4]
[422460273,1778968242000,-150.0,0.00019575,4]
[422460266,1778968242000,-150.0,0.00019538,4]
[422460269,1778968242000,-150.0,0.00019553,4]
[422460271,1778968242000,-150.0,0.00019564,4]
[422460274,1778968242000,-262.09781016,0.00019578,4]
[422460272,1778968242000,-150.0,0.00019568,4]
[422460252,1778968242000,-150.0,0.00019484,4]
[422460275,1778968242000,-150.0,0.00019582,4]
[422460276,1778968242000,-150.0,0.00019589,4]
[422460278,1778968242000,-150.43976418,0.000196,2]
[422460287,1778968242000,-150.0,0.0001966,4]
[422460277,1778968242000,-262.09781016,0.000196,4]
[422460288,1778968242000,-150.0,0.0001966,4]
[422460286,1778968242000,-150.0,0.00019652,4]
[422460279,1778968242000,-150.0,0.00019601,4]
[422460268,1778968242000,-260.47,0.0001954,2]
[422460256,1778968242000,-150.0,0.00019495,4]
[422460244,1778968242000,-150.0,0.00019442,4]
[422460254,1778968242000,-150.0,0.00019491,4]
[422460280,1778968242000,-150.0,0.0001961,4]
[422460224,1778968242000,-150.0,0.0001932,4]
[422460223,1778968242000,-262.09781016,0.00019319,4]
[422460225,1778968242000,-150.0,0.00019322,4]
[422460227,1778968242000,-262.09781016,0.00019341,4]